fUST/lending_fUST_20250723
["ID","MTS","AMOUNT","RATE_DAILY","PERIOD"]
[374298889,1753269044899,-460.0,0.00019726,2]
[374298890,1753269044908,-460.0,0.00019726,2]
[374298891,1753269044918,-460.0,0.00019726,2]
[374298892,1753269044927,-460.0,0.00019726,2]
[374298893,1753269044937,-460.0,0.00019726,2]
[374298894,1753269044947,-460.0,0.00019726,2]
[374298895,1753269044956,-460.0,0.00019726,2]
[374298896,1753269044966,-460.0,0.00019726,2]
[374298897,1753269044976,-460.0,0.00019726,2]
[374298898,1753269044986,-460.0,0.00019726,2]
[374298899,1753269045134,-460.0,0.00019726,2]
[374298900,1753269045144,-460.0,0.00019726,2]
[374298901,1753269045154,-460.0,0.00019726,2]
[374298902,1753269045164,-460.0,0.00019726,2]
[374298903,1753269045174,-537.57,0.00019726,2]
[374298904,1753269045183,-249.56249009,0.00019726,2]
[374298905,1753269045193,-460.0,0.00019726,2]
[374298906,1753269045203,-1662.56,0.00019726,2]
[374298907,1753269045212,-460.0,0.00019726,2]
[374298908,1753269045222,-460.0,0.00019726,2]
[374298909,1753269045232,-460.0,0.00019726,2]
[374298910,1753269045241,-460.0,0.00019726,2]
[374298911,1753269045251,-460.0,0.00019726,2]
[374298912,1753269045260,-460.0,0.00019726,2]
[374298913,1753269045270,-460.0,0.00019726,2]
[374298914,1753269045279,-460.0,0.00019726,2]
[374298915,1753269045288,-510.42,0.00019726,2]
[374298916,1753269045298,-460.0,0.00019726,2]
[374298917,1753269045308,-460.0,0.00019726,2]
[374298918,1753269045318,-460.0,0.00019726,2]
[374298919,1753269045328,-465.7251263,0.00019726,2]
[374298920,1753269045338,-460.0,0.00019726,2]
[374298921,1753269045348,-460.0,0.00019726,2]
[374298922,1753269045357,-460.0,0.00019726,2]
[374298923,1753269045366,-460.0,0.00019726,2]
[374298924,1753269045375,-460.0,0.00019726,2]
[374298925,1753269045385,-460.0,0.00019726,2]
[374298926,1753269045395,-489.06,0.00019726,2]
[374298927,1753269045406,-460.0,0.00019726,2]
[374298928,1753269045420,-460.0,0.00019726,2]
[374298929,1753269045430,-460.0,0.00019726,2]
[374298931,1753269045440,-1972.41,0.00019726,2]
[374298932,1753269045450,-460.0,0.00019726,2]
[374298933,1753269045460,-460.0,0.00019726,2]
[374298934,1753269045470,-534.43300934,0.00019726,2]
[374298935,1753269045480,-460.0,0.00019726,2]
[374298936,1753269045490,-460.0,0.00019726,2]
[374298937,1753269045500,-460.0,0.00019726,2]
[374298938,1753269045512,-460.0,0.00019726,2]
[374298939,1753269045522,-561.09862588,0.00019726,2]
[374298940,1753269045533,-460.0,0.00019726,2]
[374298941,1753269045543,-460.0,0.00019726,2]
[374298942,1753269045553,-460.0,0.00019726,2]
[374298943,1753269045562,-460.0,0.00019726,2]
[374298944,1753269045571,-460.0,0.00019726,2]
[374298945,1753269045581,-550.8,0.00019726,2]
[374298946,1753269045592,-9286.51,0.00019726,2]
[374298947,1753269045601,-460.0,0.00019726,2]
[374298948,1753269045611,-460.0,0.00019726,2]
[374298949,1753269045620,-460.0,0.00019726,2]
[374298950,1753269045629,-3142.68,0.00019726,2]
[374298951,1753269045639,-633.27,0.00019726,2]
[374298952,1753269045649,-460.0,0.00019726,2]
[374298953,1753269045659,-460.0,0.00019726,2]
[374298954,1753269045668,-460.0,0.00019726,2]
[374298955,1753269045677,-364.16,0.00019726,2]
[374298956,1753269045687,-237.09,0.00019726,2]
[374298957,1753269045696,-460.0,0.00019726,2]
[374298958,1753269045706,-460.0,0.00019726,2]
[374298959,1753269045715,-460.0,0.00019726,2]
[374298960,1753269045724,-495.54,0.00019726,2]
[374298961,1753269045734,-460.0,0.00019726,2]
[374298962,1753269045743,-460.0,0.00019726,2]
[374298963,1753269045752,-1143.97,0.00019726,2]
[374298964,1753269045762,-293.53641071,0.00019726,2]
[374298965,1753269045771,-460.0,0.00019726,2]
[374298966,1753269045782,-2988.91,0.00019726,2]
[374298967,1753269045792,-616.65,0.00019726,2]
[374298968,1753269045801,-2890.28,0.00019726,2]
[374298969,1753269045811,-203.81716611,0.00019726,2]
[374298970,1753269045821,-460.0,0.00019726,2]
[374298971,1753269045832,-460.0,0.00019726,2]
[374298972,1753269045843,-2258.56,0.00019726,2]
[374298973,1753269045854,-663.1,0.00019726,2]
[374298974,1753269045864,-1622.8,0.00019726,2]
[374298975,1753269045874,-460.0,0.00019726,2]
[374298976,1753269045883,-460.0,0.00019726,2]
[374298977,1753269045893,-1881.89,0.00019726,2]
[374298978,1753269045902,-460.0,0.00019726,2]
[374298979,1753269045912,-945.69,0.00019726,2]
[374298980,1753269045922,-460.0,0.00019726,2]
[374298981,1753269045932,-547.12,0.00019726,2]
[374298982,1753269045942,-547.12,0.00019726,2]
[374298984,1753269045951,-460.0,0.00019726,2]
[374298986,1753269045960,-460.0,0.00019726,2]
[374298987,1753269045970,-460.0,0.00019726,2]
[374298988,1753269045980,-5327.27,0.00019726,2]
[374298989,1753269045990,-460.0,0.00019726,2]
[374298990,1753269046000,-460.0,0.00019726,2]
[374298991,1753269046010,-460.0,0.00019726,2]
[374298992,1753269046020,-460.0,0.00019726,2]
[374298993,1753269046030,-460.0,0.00019726,2]
[374298994,1753269046040,-460.0,0.00019726,2]
[374298995,1753269046050,-460.0,0.00019726,2]
[374298996,1753269046060,-2413.69,0.00019726,2]
[374298997,1753269046070,-460.0,0.00019726,2]
[374298998,1753269046080,-460.0,0.00019726,2]
[374298999,1753269046089,-952.12,0.00019726,2]
[374299000,1753269046100,-460.0,0.00019726,2]
[374299001,1753269046109,-460.0,0.00019726,2]
[374299002,1753269046119,-1314.48,0.00019726,2]
[374299003,1753269046129,-460.0,0.00019726,2]
[374299004,1753269046138,-460.0,0.00019726,2]
[374299005,1753269046147,-460.0,0.00019726,2]
[374299006,1753269046157,-460.0,0.00019726,2]
[374299007,1753269046166,-460.0,0.00019726,2]
[374299008,1753269046176,-460.0,0.00019726,2]
[374299009,1753269046185,-1383.49,0.00019726,2]
[374299010,1753269046195,-576.26,0.00019726,2]
[374299011,1753269046205,-473.8932571,0.00019726,2]
[374299012,1753269046214,-460.0,0.00019726,2]
[374299013,1753269046224,-1959.77,0.00019726,2]
[374299014,1753269046234,-460.0,0.00019726,2]
[374299015,1753269046245,-601.74,0.00019726,2]
[374299016,1753269046254,-460.0,0.00019726,2]
[374299017,1753269046264,-151.0,0.000198,2]
[374299018,1753269046274,-1000.0,0.00019821,2]
[374299019,1753269046286,-504.13604337,0.00019821,2]
[374299020,1753269046295,-439.72920472,0.00019821,2]
[374299021,1753269046306,-500.0,0.00019821,2]
[374299022,1753269046315,-1000.0,0.00019821,2]
[374299023,1753269046327,-1000.0,0.00019821,2]
[374299024,1753269046340,-195.18191197,0.00019821,2]
[374299025,1753269046350,-1000.0,0.00019821,2]
[374299026,1753269046360,-500.0,0.00019821,2]
[374299027,1753269046370,-1000.0,0.00019821,2]
[374299028,1753269046380,-500.0,0.00019821,2]
[374299029,1753269046389,-500.0,0.00019821,2]
[374299030,1753269046399,-1000.0,0.00019821,2]
[374299031,1753269046411,-1000.0,0.00019821,2]
[374299032,1753269046420,-1000.0,0.00019821,2]
[374299033,1753269046430,-1000.0,0.00019821,2]
[374299034,1753269046439,-701.81,0.00019821,2]
[374299035,1753269046450,-3000.0,0.000199,2]
[374299036,1753269046459,-151.0,0.000199,2]
[374299037,1753269046470,-3000.0,0.0001991,2]
[374299038,1753269046480,-3000.0,0.0001992,2]
[374299039,1753269046491,-3000.0,0.0001993,2]
[374299040,1753269046503,-3000.0,0.0001994,2]
[374299041,1753269046513,-3000.0,0.0001995,2]
[374299042,1753269046522,-3000.0,0.0001996,2]
[374299043,1753269046532,-3000.0,0.0001997,2]
[374299044,1753269046542,-3000.0,0.0001998,2]
[374299045,1753269046551,-1000.0,0.0001998,2]
[374299046,1753269046562,-3000.0,0.0001999,2]
[374299047,1753269046572,-460.0,0.0002,2]
[374299048,1753269046582,-460.0,0.0002,2]
[374299049,1753269046591,-460.0,0.0002,2]
[374299050,1753269046601,-460.0,0.0002,2]
[374299051,1753269046611,-3000.0,0.0002,2]
[374299052,1753269046620,-460.0,0.0002,2]
[374299053,1753269046630,-460.0,0.0002,2]
[374299054,1753269046640,-460.0,0.0002,2]
[374299055,1753269046650,-460.0,0.0002,2]
[374299056,1753269046660,-460.0,0.0002,2]
[374299057,1753269046669,-460.0,0.0002,2]
[374299058,1753269046679,-460.0,0.0002,2]
[374299059,1753269046690,-157.42474251,0.0002,2]
[374299060,1753269046699,-460.0,0.0002,2]
[374299061,1753269046708,-460.0,0.0002,2]
[374299062,1753269046718,-460.0,0.0002,2]
[374299063,1753269046727,-515.31494766,0.0002,2]
[374299064,1753269046737,-460.0,0.0002,2]
[374299065,1753269046746,-462.85233346,0.0002,2]
[374299066,1753269046756,-563.63,0.0002,2]
[374299067,1753269046766,-151.68,0.0002,2]
[374299068,1753269046775,-460.0,0.0002,2]
[374299069,1753269046785,-460.0,0.0002,2]
[374299070,1753269046795,-460.0,0.0002,2]
[374299071,1753269046805,-195.74,0.0002,2]
[374299072,1753269046814,-460.0,0.0002,2]
[374299073,1753269046824,-460.0,0.0002,2]
[374299074,1753269046835,-460.0,0.0002,2]
[374299075,1753269046845,-460.0,0.0002,2]
[374299076,1753269046854,-460.0,0.0002,2]
[374299077,1753269046864,-178.59315011,0.0002,2]
[374299078,1753269046873,-460.0,0.0002,2]
[374299079,1753269046883,-460.0,0.0002,2]
[374299080,1753269046893,-537.57,0.0002,2]
[374299081,1753269046903,-460.0,0.0002,2]
[374299082,1753269046913,-460.0,0.0002,2]
[374299083,1753269046922,-1662.56,0.0002,2]
[374299084,1753269046932,-460.0,0.0002,2]
[374299085,1753269046941,-466.24450382,0.0002,2]
[374299086,1753269046951,-460.0,0.0002,2]
[374299087,1753269046960,-460.0,0.0002,2]
[374299088,1753269046969,-460.0,0.0002,2]
[374299089,1753269046979,-460.0,0.0002,2]
[374299090,1753269046989,-510.42,0.0002,2]
[374299091,1753269046999,-460.0,0.0002,2]
[374299092,1753269047008,-460.0,0.0002,2]
[374299093,1753269047018,-460.0,0.0002,2]
[374299094,1753269047027,-460.0,0.0002,2]
[374299095,1753269047038,-460.0,0.0002,2]
[374299096,1753269047048,-460.0,0.0002,2]
[374299097,1753269047058,-460.0,0.0002,2]
[374299098,1753269047067,-489.06,0.0002,2]
[374299099,1753269047077,-460.0,0.0002,2]
[374299100,1753269047087,-325.2509377,0.0002,2]
[374299101,1753269047096,-460.0,0.0002,2]
[374299102,1753269047106,-1972.41,0.0002,2]
[374299103,1753269047116,-460.0,0.0002,2]
[374299104,1753269047125,-460.0,0.0002,2]
[374299105,1753269047134,-460.0,0.0002,2]
[374299106,1753269047143,-460.0,0.0002,2]
[374299107,1753269047153,-460.0,0.0002,2]
[374299108,1753269047162,-312.62435633,0.0002,2]
[374299109,1753269047172,-460.0,0.0002,2]
[374299110,1753269047181,-460.0,0.0002,2]
[374299111,1753269047191,-460.0,0.0002,2]
[374299112,1753269047200,-550.8,0.0002,2]
[374299113,1753269047209,-9286.51,0.0002,2]
[374299114,1753269047219,-460.0,0.0002,2]
[374299115,1753269047228,-460.0,0.0002,2]
[374299116,1753269047237,-3142.68,0.0002,2]
[374299117,1753269047247,-633.27,0.0002,2]
[374299118,1753269047257,-460.0,0.0002,2]
[374299119,1753269047267,-460.0,0.0002,2]
[374299120,1753269047276,-460.0,0.0002,2]
[374299121,1753269047290,-460.0,0.0002,2]
[374299122,1753269047299,-495.54,0.0002,2]
[374299123,1753269047309,-460.0,0.0002,2]
[374299124,1753269047319,-460.0,0.0002,2]
[374299125,1753269047328,-1143.97,0.0002,2]
[374299126,1753269047337,-2988.91,0.0002,2]
[374299127,1753269047346,-616.65,0.0002,2]
[374299128,1753269047356,-2890.28,0.0002,2]
[374299129,1753269047366,-460.0,0.0002,2]
[374299130,1753269047375,-460.0,0.0002,2]
[374299131,1753269047384,-2258.56,0.0002,2]
[374299132,1753269047393,-663.1,0.0002,2]
[374299133,1753269047403,-1622.8,0.0002,2]
[374299134,1753269047417,-460.0,0.0002,2]
[374299135,1753269047426,-460.0,0.0002,2]
[374299136,1753269047435,-1881.89,0.0002,2]
[374299137,1753269047445,-945.69,0.0002,2]
[374299138,1753269047454,-460.0,0.0002,2]
[374299139,1753269047463,-547.12,0.0002,2]
[374299140,1753269047472,-460.0,0.0002,2]
[374299141,1753269047483,-460.0,0.0002,2]
[374299142,1753269047493,-460.0,0.0002,2]
[374299143,1753269047502,-5327.27,0.0002,2]
[374299144,1753269047512,-460.0,0.0002,2]
[374299145,1753269047521,-460.0,0.0002,2]
[374299146,1753269047533,-460.0,0.0002,2]
[374299147,1753269047542,-460.0,0.0002,2]
[374299148,1753269047552,-460.0,0.0002,2]
[374299149,1753269047561,-460.0,0.0002,2]
[374299150,1753269047571,-2413.69,0.0002,2]
[374299151,1753269047580,-460.0,0.0002,2]
[374299152,1753269047589,-460.0,0.0002,2]
[374299153,1753269047599,-952.12,0.0002,2]
[374299154,1753269047608,-460.0,0.0002,2]
[374299155,1753269047618,-460.0,0.0002,2]
[374299156,1753269047627,-1314.48,0.0002,2]
[374299157,1753269047637,-460.0,0.0002,2]
[374299158,1753269047646,-460.0,0.0002,2]
[374299159,1753269047656,-460.0,0.0002,2]
[374299160,1753269047665,-460.0,0.0002,2]
[374299161,1753269047675,-460.0,0.0002,2]
[374299162,1753269047685,-460.0,0.0002,2]
[374299163,1753269047694,-1383.49,0.0002,2]
[374299164,1753269047704,-576.26,0.0002,2]
[374299165,1753269047715,-464.86382537,0.0002,2]
[374299166,1753269047725,-1959.77,0.0002,2]
[374299167,1753269047734,-460.0,0.0002,2]
[374299168,1753269047744,-601.74,0.0002,2]
[374299169,1753269047758,-460.0,0.0002,2]
[374299170,1753269047768,-3000.0,0.0002001,2]
[374299171,1753269047780,-3000.0,0.0002002,2]
[374299172,1753269047790,-3000.0,0.0002003,2]
[374299173,1753269047800,-3000.0,0.0002004,2]
[374299174,1753269047811,-3000.0,0.0002005,2]
[374299175,1753269047821,-3000.0,0.0002006,2]
[374299176,1753269047830,-3000.0,0.0002007,2]
[374299177,1753269047840,-3000.0,0.0002008,2]
[374299178,1753269047851,-3000.0,0.0002009,2]
[374299179,1753269047861,-3000.0,0.000201,2]
[374299180,1753269047871,-151.0,0.000201,4]
[374299181,1753269047880,-3000.0,0.0002011,2]
[374299182,1753269047890,-3000.0,0.0002012,2]
[374299183,1753269047899,-3000.0,0.0002013,2]
[374299184,1753269047909,-3000.0,0.0002014,2]
[374299185,1753269047918,-3000.0,0.0002015,2]
[374299186,1753269047928,-3000.0,0.0002016,2]
[374299187,1753269047937,-3000.0,0.0002017,2]
[374299188,1753269047946,-170.6692493,0.00020173,2]
[374299189,1753269047956,-3000.0,0.0002018,2]
[374299190,1753269048097,-612.130318,0.00020187,2]
[374299191,1753269048108,-3000.0,0.0002019,2]
[374299192,1753269048128,-3000.0,0.000202,2]
[374299193,1753269048138,-151.0,0.000202,4]
[374299194,1753269048148,-3000.0,0.0002021,2]
[374299195,1753269048158,-3000.0,0.0002022,2]
[374299196,1753269048168,-500.0,0.00020225,2]
[374299197,1753269048178,-500.0,0.00020225,2]
[374299198,1753269048187,-274.27384637,0.00020225,2]
[374299199,1753269048197,-500.0,0.00020225,2]
[374299200,1753269048207,-280.22416713,0.00020225,2]
[374299201,1753269048216,-3000.0,0.0002023,2]
[374299202,1753269048226,-3000.0,0.0002024,2]
[374299203,1753269048236,-500.0,0.0002024,2]
[374299204,1753269048246,-386.60069791,0.0002024,2]
[374299205,1753269048255,-500.0,0.0002024,2]
[374299206,1753269048265,-500.0,0.0002024,2]
[374299207,1753269048274,-500.0,0.0002024,2]
[374299208,1753269048286,-500.0,0.0002024,2]
[374299209,1753269048296,-500.0,0.0002024,2]
[374299210,1753269048306,-500.0,0.0002024,2]
[374299211,1753269048315,-500.0,0.0002024,2]
[374299212,1753269048325,-500.0,0.0002024,2]
[374299213,1753269048335,-500.0,0.0002024,2]
[374299214,1753269048345,-500.0,0.0002024,2]
[374299215,1753269048355,-552.78730248,0.0002024,2]
[374299216,1753269048364,-500.0,0.0002024,2]
[374299217,1753269048373,-500.0,0.0002024,2]
[374299218,1753269048384,-500.0,0.0002024,2]
[374299219,1753269048393,-500.0,0.0002024,2]
[374299220,1753269048404,-641.49978633,0.0002024,2]
[374299221,1753269048418,-500.8524135,0.0002024,2]
[374299222,1753269048429,-500.0,0.0002024,2]
[374299223,1753269048439,-500.0,0.0002024,2]
[374299224,1753269048450,-500.0,0.0002024,2]
[374299225,1753269048459,-500.0,0.0002024,2]
[374299226,1753269048469,-500.0,0.0002024,2]
[374299227,1753269048479,-500.0,0.0002024,2]
[374299228,1753269048492,-500.55543963,0.0002024,2]
[374299229,1753269048503,-500.0,0.0002024,2]
[374299230,1753269048512,-500.0,0.0002024,2]
[374299231,1753269048522,-500.0,0.0002024,2]
[374299232,1753269048534,-500.0,0.0002024,2]
[374299233,1753269048543,-3000.0,0.0002025,2]
[374299234,1753269048553,-3000.0,0.0002026,2]
[374299235,1753269048563,-500.91301163,0.00020267,2]
[374299236,1753269048573,-500.0,0.00020267,2]
[374299237,1753269048583,-500.0,0.00020267,2]
[374299238,1753269048592,-500.0,0.00020267,2]
[374299239,1753269048602,-3000.0,0.0002027,2]
[374299240,1753269048613,-1000.0,0.0002027,2]
[374299241,1753269048623,-460.0,0.00020273,2]
[374299242,1753269048633,-460.0,0.00020273,2]
[374299243,1753269048643,-604.1757024,0.00020273,2]
[374299244,1753269048652,-460.0,0.00020273,2]
[374299245,1753269048662,-460.0,0.00020273,2]
[374299246,1753269048672,-291.7981558,0.00020273,2]
[374299247,1753269048681,-460.0,0.00020273,2]
[374299248,1753269048691,-463.89688741,0.00020273,2]
[374299249,1753269048701,-366.30638691,0.00020273,2]
[374299250,1753269048710,-460.0,0.00020273,2]
[374299251,1753269048720,-460.0,0.00020273,2]
[374299252,1753269048729,-460.0,0.00020273,2]
[374299253,1753269048739,-316.3,0.00020273,2]
[374299254,1753269048748,-464.75774092,0.00020273,2]
[374299255,1753269048758,-460.0,0.00020273,2]
[374299256,1753269048768,-460.0,0.00020273,2]
[374299257,1753269048780,-460.0,0.00020273,2]
[374299258,1753269048792,-460.0,0.00020273,2]
[374299259,1753269048802,-460.0,0.00020273,2]
[374299260,1753269048812,-460.0,0.00020273,2]
[374299261,1753269048823,-460.0,0.00020273,2]
[374299262,1753269048833,-460.0,0.00020273,2]
[374299263,1753269048843,-460.0,0.00020273,2]
[374299264,1753269048853,-460.0,0.00020273,2]
[374299265,1753269048862,-460.0,0.00020273,2]
[374299266,1753269048872,-537.57,0.00020273,2]
[374299267,1753269048881,-460.0,0.00020273,2]
[374299268,1753269048890,-1662.56,0.00020273,2]
[374299269,1753269048900,-460.0,0.00020273,2]
[374299270,1753269048909,-460.0,0.00020273,2]
[374299271,1753269048919,-430.27128955,0.00020273,2]
[374299272,1753269048929,-510.42,0.00020273,2]
[374299273,1753269048938,-460.0,0.00020273,2]
[374299274,1753269048948,-460.0,0.00020273,2]
[374299275,1753269048958,-460.0,0.00020273,2]
[374299276,1753269048967,-460.0,0.00020273,2]
[374299277,1753269048977,-460.0,0.00020273,2]
[374299278,1753269048987,-460.0,0.00020273,2]
[374299279,1753269048996,-461.69,0.00020273,2]
[374299280,1753269049006,-489.06,0.00020273,2]
[374299281,1753269049016,-460.0,0.00020273,2]
[374299282,1753269049026,-460.0,0.00020273,2]
[374299283,1753269049037,-1972.41,0.00020273,2]
[374299284,1753269049047,-460.0,0.00020273,2]
[374299285,1753269049056,-460.0,0.00020273,2]
[374299286,1753269049066,-460.0,0.00020273,2]
[374299287,1753269049075,-460.0,0.00020273,2]
[374299288,1753269049084,-460.0,0.00020273,2]
[374299289,1753269049094,-460.0,0.00020273,2]
[374299290,1753269049105,-460.0,0.00020273,2]
[374299291,1753269049116,-550.8,0.00020273,2]
[374299292,1753269049125,-9286.51,0.00020273,2]
[374299293,1753269049136,-460.0,0.00020273,2]
[374299294,1753269049146,-460.0,0.00020273,2]
[374299295,1753269049158,-3142.68,0.00020273,2]
[374299296,1753269049168,-633.27,0.00020273,2]
[374299297,1753269049178,-460.0,0.00020273,2]
[374299298,1753269049187,-460.0,0.00020273,2]
[374299299,1753269049197,-460.0,0.00020273,2]
[374299300,1753269049206,-460.0,0.00020273,2]
[374299301,1753269049217,-495.54,0.00020273,2]
[374299302,1753269049229,-460.0,0.00020273,2]
[374299303,1753269049240,-460.0,0.00020273,2]
[374299304,1753269049250,-1143.97,0.00020273,2]
[374299305,1753269049259,-2988.91,0.00020273,2]
[374299306,1753269049269,-616.65,0.00020273,2]
[374299307,1753269049279,-2890.28,0.00020273,2]
[374299308,1753269049289,-460.0,0.00020273,2]
[374299309,1753269049299,-460.0,0.00020273,2]
[374299310,1753269049311,-2258.56,0.00020273,2]
[374299311,1753269049321,-663.1,0.00020273,2]
[374299312,1753269049331,-1622.8,0.00020273,2]
[374299313,1753269049341,-412.74,0.00020273,2]
[374299314,1753269049350,-1881.89,0.00020273,2]
[374299315,1753269049361,-945.69,0.00020273,2]
[374299316,1753269049371,-460.0,0.00020273,2]
[374299317,1753269049380,-547.12,0.00020273,2]
[374299318,1753269049390,-460.0,0.00020273,2]
[374299319,1753269049400,-460.0,0.00020273,2]
[374299320,1753269049412,-460.0,0.00020273,2]
[374299321,1753269049421,-5327.27,0.00020273,2]
[374299322,1753269049431,-460.0,0.00020273,2]
[374299323,1753269049440,-460.0,0.00020273,2]
[374299324,1753269049450,-460.0,0.00020273,2]
[374299325,1753269049460,-460.0,0.00020273,2]
[374299326,1753269049469,-460.0,0.00020273,2]
[374299327,1753269049479,-460.0,0.00020273,2]
[374299328,1753269049489,-2413.69,0.00020273,2]
[374299329,1753269049499,-460.0,0.00020273,2]
[374299330,1753269049508,-460.0,0.00020273,2]
[374299331,1753269049518,-952.12,0.00020273,2]
[374299332,1753269049527,-460.0,0.00020273,2]
[374299333,1753269049537,-460.0,0.00020273,2]
[374299334,1753269049546,-1314.48,0.00020273,2]
[374299335,1753269049556,-460.0,0.00020273,2]
[374299336,1753269049564,-460.0,0.00020273,2]
[374299337,1753269049574,-460.0,0.00020273,2]
[374299338,1753269049583,-460.0,0.00020273,2]
[374299339,1753269049592,-460.0,0.00020273,2]
[374299340,1753269049602,-460.0,0.00020273,2]
[374299341,1753269049612,-1383.49,0.00020273,2]
[374299342,1753269049621,-576.26,0.00020273,2]
[374299343,1753269049630,-1959.77,0.00020273,2]
[374299344,1753269049640,-460.0,0.00020273,2]
[374299345,1753269049650,-601.74,0.00020273,2]
[374299346,1753269049660,-460.0,0.00020273,2]
[374299347,1753269049669,-3000.0,0.0002028,2]
[374299348,1753269049679,-3000.0,0.0002029,2]
[374299349,1753269049688,-3000.0,0.000203,2]
[374299350,1753269049697,-3000.0,0.0002031,2]
[374299351,1753269049708,-3000.0,0.0002032,2]
[374299352,1753269049719,-3000.0,0.0002033,2]
[374299353,1753269049728,-3000.0,0.0002034,2]
[374299354,1753269049739,-3000.0,0.0002035,2]
[374299355,1753269049748,-3000.0,0.0002036,2]
[374299356,1753269049758,-1000.0,0.00020368,2]
[374299357,1753269049768,-517.57490607,0.00020368,2]
[374299358,1753269049777,-1500.0,0.00020368,2]
[374299359,1753269049788,-1500.0,0.00020368,2]
[374299360,1753269049798,-1500.0,0.00020368,2]
[374299361,1753269049807,-1595.20899026,0.00020368,2]
[374299362,1753269049816,-1500.0,0.00020368,2]
[374299363,1753269049825,-3000.0,0.0002037,2]
[374299364,1753269049835,-3000.0,0.0002038,2]
[374299365,1753269049845,-3000.0,0.0002039,2]
[374299366,1753269049854,-3000.0,0.000204,2]
[374299367,1753269049864,-3000.0,0.0002041,2]
[374299368,1753269049873,-3000.0,0.0002042,2]
[374299369,1753269049882,-3000.0,0.0002043,2]
[374299370,1753269049891,-3000.0,0.0002044,2]
[374299371,1753269049900,-3000.0,0.0002045,2]
[374299372,1753269049910,-3000.0,0.0002046,2]
[374299373,1753269049919,-158.27645893,0.00020462,2]
[374299374,1753269049928,-500.0,0.00020462,2]
[374299375,1753269049937,-158.27900585,0.00020462,2]
[374299376,1753269049947,-3000.0,0.0002047,2]
[374299377,1753269049956,-500.0,0.00020471,2]
[374299378,1753269049966,-500.0,0.00020471,2]
[374299379,1753269049975,-594.36062447,0.00020471,2]
[374299380,1753269049984,-3909.33191,0.0002048,2]
[374299381,1753269049993,-987.88,0.00020538,3]
[374299382,1753269050003,-493.94,0.00020538,3]
[374299383,1753269050012,-696.18,0.00020538,3]
[374299384,1753269050021,-460.0,0.00020547,2]
[374299385,1753269050031,-460.0,0.00020547,2]
[374299386,1753269050040,-460.0,0.00020547,2]
[374299387,1753269050049,-331.57972127,0.00020547,2]
[374299388,1753269050059,-460.0,0.00020547,2]
[374299389,1753269050068,-460.0,0.00020547,2]
[374299390,1753269050077,-460.0,0.00020547,2]
[374299391,1753269050086,-593.09574977,0.00020547,2]